[Event "Titled Tuesday Blitz June 6 Late 2023"]
[White "Eugene, Floryan"]
[Black "Shohat, Yotam"]
[WhiteFideId "20694784"]
[BlackFideId "2813955"]
[WhiteElo "2369"]
[BlackElo "2226"]
[Result "1-0"]
[Round "7"]
[TimeControl "180+2"]
[Date "2023.06.07"]
[WhiteClock "0:01:36"]
[BlackClock "0:02:16"]
[Board "57"]

1. d4 {[%clk 0:03:00]}  Nf6 {[%clk 0:02:59]} 2. c4 {[%clk 0:03:00]}  e6 {[%clk 0:02:58]} 3. g4 {[%clk 0:03:01]}  Nxg4 {[%clk 0:02:57]} 4. e4 {[%clk 0:02:59]}  Nf6 {[%clk 0:02:57]} 5. Nc3 {[%clk 0:02:57]}  Bb4 {[%clk 0:02:56]} 6. e5 {[%clk 0:02:53]}  Ne4 {[%clk 0:02:55]} 7. Qc2 {[%clk 0:02:53]}  d5 {[%clk 0:02:49]} 8. Bg2 {[%clk 0:02:42]}  Nxc3 {[%clk 0:02:43]} 9. bxc3 {[%clk 0:02:41]}  Be7 {[%clk 0:02:43]} 10. Nf3 {[%clk 0:02:31]}  b6 {[%clk 0:02:34]} 11. Rg1 {[%clk 0:02:21]}  Ba6 {[%clk 0:02:30]} 12. cxd5 {[%clk 0:02:14]}  exd5 {[%clk 0:02:31]} 13. h4 {[%clk 0:02:08]}  Bxh4 {[%clk 0:02:24]} 14. Nxh4 {[%clk 0:02:07]}  Qxh4 {[%clk 0:02:24]} 15. Bxd5 {[%clk 0:02:06]}  c6 {[%clk 0:02:23]} 16. Bxf7+ {[%clk 0:01:37]}  Kxf7 {[%clk 0:02:22]} 17. Qf5+ {[%clk 0:01:38]}  Ke8 {[%clk 0:02:16]} 18. Bg5 {[%clk 0:01:36]} 1-0


[Site "https://www.chess.com"]

[Event "Titled Tuesday Blitz June 6 Late 2023"]
[White "Van Dael, Siem"]
[Black "Domingo Nunez, Alejandro"]
[WhiteFideId "1049771"]
[BlackFideId "22245561"]
[WhiteElo "2336"]
[BlackElo "2291"]
[Result "1-0"]
[Round "7"]
[TimeControl "180+2"]
[Date "2023.06.07"]
[WhiteClock "0:00:09"]
[BlackClock "0:00:02"]
[Board "59"]

1. e4 {[%clk 0:03:00]}  g6 {[%clk 0:02:55]} 2. d4 {[%clk 0:02:52]}  Bg7 {[%clk 0:02:54]} 3. Nc3 {[%clk 0:02:48]}  c6 {[%clk 0:02:50]} 4. Nf3 {[%clk 0:02:46]}  d5 {[%clk 0:02:50]} 5. h3 {[%clk 0:02:46]}  dxe4 {[%clk 0:02:50]} 6. Nxe4 {[%clk 0:02:47]}  Nf6 {[%clk 0:02:51]} 7. Nxf6+ {[%clk 0:02:46]}  exf6 {[%clk 0:02:52]} 8. Bd3 {[%clk 0:02:44]}  O-O {[%clk 0:02:53]} 9. O-O {[%clk 0:02:44]}  a5 {[%clk 0:02:53]} 10. Re1 {[%clk 0:02:44]}  Na6 {[%clk 0:02:53]} 11. c3 {[%clk 0:02:44]}  Nc7 {[%clk 0:02:53]} 12. a4 {[%clk 0:02:43]}  Nd5 {[%clk 0:02:53]} 13. Bd2 {[%clk 0:02:42]}  Be6 {[%clk 0:02:53]} 14. Nh2 {[%clk 0:02:31]}  Qd6 {[%clk 0:02:51]} 15. Ng4 {[%clk 0:02:29]}  h5 {[%clk 0:02:50]} 16. Ne3 {[%clk 0:02:24]}  Nf4 {[%clk 0:02:49]} 17. Bf1 {[%clk 0:02:22]}  Qc7 {[%clk 0:02:42]} 18. Qf3 {[%clk 0:02:16]}  Rfe8 {[%clk 0:02:33]} 19. Bc4 {[%clk 0:02:09]}  Bxc4 {[%clk 0:01:35]} 20. Nxc4 {[%clk 0:02:10]}  Nd5 {[%clk 0:01:35]} 21. Re2 {[%clk 0:01:49]}  Rxe2 {[%clk 0:01:00]} 22. Qxe2 {[%clk 0:01:50]}  c5 {[%clk 0:01:00]} 23. dxc5 {[%clk 0:01:25]}  Qxc5 {[%clk 0:01:01]} 24. Be3 {[%clk 0:01:26]}  Qc6 {[%clk 0:01:01]} 25. Rd1 {[%clk 0:01:21]}  Nxe3 {[%clk 0:00:58]} 26. fxe3 {[%clk 0:01:04]}  Re8 {[%clk 0:00:55]} 27. Nxa5 {[%clk 0:00:54]}  Qxa4 {[%clk 0:00:39]} 28. Nxb7 {[%clk 0:00:53]}  Qa7 {[%clk 0:00:35]} 29. Qb5 {[%clk 0:00:40]}  Qxe3+ {[%clk 0:00:32]} 30. Kh1 {[%clk 0:00:39]}  Bh6 {[%clk 0:00:26]} 31. Nd6 {[%clk 0:00:34]}  Rd8 {[%clk 0:00:20]} 32. Qd5 {[%clk 0:00:30]}  Qe7 {[%clk 0:00:15]} 33. c4 {[%clk 0:00:30]}  Bf4 {[%clk 0:00:14]} 34. c5 {[%clk 0:00:30]}  Rd7 {[%clk 0:00:09]} 35. Nf5 {[%clk 0:00:22]}  gxf5 {[%clk 0:00:01]} 36. Qxd7 {[%clk 0:00:22]}  Qe3 {[%clk 0:00:01]} 37. Qd3 {[%clk 0:00:10]}  Qxc5 {[%clk 0:00:02]} 38. Qf3 {[%clk 0:00:09]} 1-0


[Site "https://www.chess.com"]

[Event "Titled Tuesday Blitz June 6 Late 2023"]
[White "Omranalhosani21"]
[Black "Kashtanov, Ruslan"]
[BlackFideId "4124871"]
[WhiteElo "2614"]
[BlackElo "2263"]
[Result "1-0"]
[Round "7"]
[TimeControl "180+2"]
[Date "2023.06.07"]
[WhiteClock "0:01:21"]
[BlackClock "0:00:39"]
[Board "60"]

1. e4 {[%clk 0:02:59]}  c5 {[%clk 0:02:59]} 2. Nf3 {[%clk 0:03:00]}  d6 {[%clk 0:02:59]} 3. d4 {[%clk 0:02:57]}  cxd4 {[%clk 0:03:00]} 4. Nxd4 {[%clk 0:02:57]}  Nf6 {[%clk 0:03:01]} 5. Nc3 {[%clk 0:02:57]}  a6 {[%clk 0:03:01]} 6. Bg5 {[%clk 0:02:56]}  e6 {[%clk 0:03:00]} 7. f4 {[%clk 0:02:56]}  Nbd7 {[%clk 0:02:58]} 8. Qf3 {[%clk 0:02:56]}  Qc7 {[%clk 0:02:51]} 9. O-O-O {[%clk 0:02:55]}  Be7 {[%clk 0:02:49]} 10. Kb1 {[%clk 0:02:48]}  h6 {[%clk 0:02:17]} 11. Bh4 {[%clk 0:02:45]}  g5 {[%clk 0:02:09]} 12. fxg5 {[%clk 0:02:40]}  Ne5 {[%clk 0:02:09]} 13. Qf2 {[%clk 0:02:36]}  Nfg4 {[%clk 0:01:58]} 14. Qe1 {[%clk 0:02:36]}  hxg5 {[%clk 0:01:56]} 15. Bg3 {[%clk 0:02:36]}  b5 {[%clk 0:01:52]} 16. h3 {[%clk 0:02:34]}  Nf6 {[%clk 0:01:52]} 17. Bd3 {[%clk 0:02:22]}  Nh5 {[%clk 0:01:33]} 18. Bf2 {[%clk 0:02:06]}  Nf4 {[%clk 0:01:31]} 19. Bf1 {[%clk 0:02:06]}  b4 {[%clk 0:01:20]} 20. Nce2 {[%clk 0:02:05]}  Bb7 {[%clk 0:01:16]} 21. Nxf4 {[%clk 0:02:04]}  gxf4 {[%clk 0:01:17]} 22. Qxb4 {[%clk 0:01:40]}  Bxe4 {[%clk 0:01:14]} 23. Qa4+ {[%clk 0:01:38]}  Nd7 {[%clk 0:01:05]} 24. Nxe6 {[%clk 0:01:31]}  Bxc2+ {[%clk 0:00:52]} 25. Qxc2 {[%clk 0:01:32]}  Qxc2+ {[%clk 0:00:52]} 26. Kxc2 {[%clk 0:01:32]}  fxe6 {[%clk 0:00:53]} 27. Be2 {[%clk 0:01:30]}  Ne5 {[%clk 0:00:49]} 28. Bd4 {[%clk 0:01:28]}  Rg8 {[%clk 0:00:48]} 29. Bxe5 {[%clk 0:01:25]}  Rxg2 {[%clk 0:00:45]} 30. Rd2 {[%clk 0:01:25]}  f3 {[%clk 0:00:39]} 31. Bxf3 {[%clk 0:01:21]}  Rc8+ {[%clk 0:00:39]} 32. Bc3 {[%clk 0:01:21]} 1-0


[Site "https://www.chess.com"]

[Event "Titled Tuesday Blitz June 6 Late 2023"]
[White "Balla, Tamas-Kristof"]
[Black "ATM622"]
[WhiteFideId "1208497"]
[WhiteElo "2334"]
[BlackElo "2595"]
[Result "1-0"]
[Round "7"]
[TimeControl "180+2"]
[Date "2023.06.07"]
[WhiteClock "0:00:10"]
[BlackClock "0:00:02"]
[Board "62"]

1. e4 {[%clk 0:02:59]}  c6 {[%clk 0:02:59]} 2. d4 {[%clk 0:02:55]}  d5 {[%clk 0:03:00]} 3. exd5 {[%clk 0:02:56]}  cxd5 {[%clk 0:02:59]} 4. c4 {[%clk 0:02:56]}  e6 {[%clk 0:03:00]} 5. Nc3 {[%clk 0:02:55]}  Nf6 {[%clk 0:02:59]} 6. Nf3 {[%clk 0:02:49]}  dxc4 {[%clk 0:02:56]} 7. Bxc4 {[%clk 0:02:47]}  Bb4 {[%clk 0:02:56]} 8. O-O {[%clk 0:02:46]}  O-O {[%clk 0:02:53]} 9. Bg5 {[%clk 0:02:36]}  Nbd7 {[%clk 0:02:52]} 10. Qe2 {[%clk 0:02:32]}  h6 {[%clk 0:02:51]} 11. Bh4 {[%clk 0:02:32]}  a6 {[%clk 0:02:46]} 12. Rad1 {[%clk 0:02:32]}  Be7 {[%clk 0:02:40]} 13. Rfe1 {[%clk 0:02:24]}  b5 {[%clk 0:02:32]} 14. Bb3 {[%clk 0:01:55]}  Nb6 {[%clk 0:02:28]} 15. Ne5 {[%clk 0:01:51]}  Bb7 {[%clk 0:02:26]} 16. Nxf7 {[%clk 0:01:49]}  Rxf7 {[%clk 0:02:20]} 17. Bxe6 {[%clk 0:01:19]}  Nbd5 {[%clk 0:02:06]} 18. Bxf7+ {[%clk 0:01:14]}  Kxf7 {[%clk 0:02:05]} 19. Qe6+ {[%clk 0:00:56]}  Kf8 {[%clk 0:02:03]} 20. Re5 {[%clk 0:00:30]}  Nf4 {[%clk 0:01:55]} 21. Qf5 {[%clk 0:00:27]}  Nxg2 {[%clk 0:01:51]} 22. Bg3 {[%clk 0:00:24]}  b4 {[%clk 0:01:48]} 23. Na4 {[%clk 0:00:19]}  Bc6 {[%clk 0:01:36]} 24. Nc5 {[%clk 0:00:19]}  Bxc5 {[%clk 0:01:25]} 25. Rxc5 {[%clk 0:00:20]}  Bd5 {[%clk 0:01:20]} 26. Rxd5 {[%clk 0:00:14]}  Qxd5 {[%clk 0:01:18]} 27. Qxd5 {[%clk 0:00:15]}  Nxd5 {[%clk 0:01:18]} 28. Kxg2 {[%clk 0:00:16]}  a5 {[%clk 0:01:16]} 29. Rc1 {[%clk 0:00:16]}  Ke7 {[%clk 0:01:09]} 30. Rc5 {[%clk 0:00:16]}  Ke6 {[%clk 0:01:07]} 31. Rc6+ {[%clk 0:00:17]}  Kf5 {[%clk 0:01:07]} 32. Rc5 {[%clk 0:00:16]}  Ke4 {[%clk 0:01:07]} 33. Be5 {[%clk 0:00:16]}  Ne7 {[%clk 0:00:51]} 34. Kf1 {[%clk 0:00:13]}  Kd3 {[%clk 0:00:47]} 35. Bxg7 {[%clk 0:00:08]}  Ng6 {[%clk 0:00:47]} 36. Bxh6 {[%clk 0:00:08]}  Rh8 {[%clk 0:00:46]} 37. Rh5 {[%clk 0:00:06]}  Nf4 {[%clk 0:00:44]} 38. Rh4 {[%clk 0:00:05]}  Ng6 {[%clk 0:00:43]} 39. Rh5 {[%clk 0:00:05]}  Nf4 {[%clk 0:00:41]} 40. Rf5 {[%clk 0:00:04]}  Ne6 {[%clk 0:00:35]} 41. Be3 {[%clk 0:00:04]}  Rxh2 {[%clk 0:00:33]} 42. Rxa5 {[%clk 0:00:04]}  Kc2 {[%clk 0:00:29]} 43. d5 {[%clk 0:00:05]}  Nd8 {[%clk 0:00:22]} 44. d6 {[%clk 0:00:05]}  Kxb2 {[%clk 0:00:20]} 45. Rb5 {[%clk 0:00:05]}  Ka3 {[%clk 0:00:13]} 46. Rb8 {[%clk 0:00:05]}  Nc6 {[%clk 0:00:14]} 47. Rb6 {[%clk 0:00:05]}  Nd8 {[%clk 0:00:13]} 48. Bg5 {[%clk 0:00:06]}  Ne6 {[%clk 0:00:12]} 49. d7 {[%clk 0:00:06]}  Nxg5 {[%clk 0:00:02]} 50. d8=Q {[%clk 0:00:06]}  Ne4 {[%clk 0:00:01]} 51. Qa8+ {[%clk 0:00:07]}  Kb2 {[%clk 0:00:01]} 52. Rxb4+ {[%clk 0:00:07]}  Kc3 {[%clk 0:00:02]} 53. Qxe4 {[%clk 0:00:08]}  Rh1+ {[%clk 0:00:01]} 54. Qxh1 {[%clk 0:00:09]}  Kxb4 {[%clk 0:00:01]} 55. Qf3 {[%clk 0:00:09]}  Ka4 {[%clk 0:00:01]} 56. Qb3+ {[%clk 0:00:10]}  Ka5 {[%clk 0:00:02]} 57. Ke2 {[%clk 0:00:10]} 1-0


[Site "https://www.chess.com"]

[Event "Titled Tuesday Blitz June 6 Late 2023"]
[White "Hristodoulou, Panagiotis"]
[Black "Tejedor Fuente, Enrique"]
[WhiteFideId "4214340"]
[BlackFideId "2299100"]
[WhiteElo "2272"]
[BlackElo "2496"]
[Result "0-1"]
[Round "7"]
[TimeControl "180+2"]
[Date "2023.06.07"]
[WhiteClock "0:01:40"]
[BlackClock "0:01:44"]
[Board "65"]

1. e4 {[%clk 0:03:00]}  e5 {[%clk 0:02:51]} 2. Nf3 {[%clk 0:02:59]}  Nc6 {[%clk 0:02:39]} 3. Bc4 {[%clk 0:02:58]}  Nf6 {[%clk 0:02:33]} 4. d3 {[%clk 0:02:57]}  Bc5 {[%clk 0:02:29]} 5. O-O {[%clk 0:02:57]}  O-O {[%clk 0:02:26]} 6. c3 {[%clk 0:02:55]}  d6 {[%clk 0:02:25]} 7. a4 {[%clk 0:02:55]}  a5 {[%clk 0:02:23]} 8. h3 {[%clk 0:02:54]}  Be6 {[%clk 0:02:19]} 9. Nbd2 {[%clk 0:02:52]}  h6 {[%clk 0:02:17]} 10. Re1 {[%clk 0:02:52]}  Qb8 {[%clk 0:02:16]} 11. Bxe6 {[%clk 0:02:11]}  fxe6 {[%clk 0:02:14]} 12. Nc4 {[%clk 0:02:11]}  Qa7 {[%clk 0:02:10]} 13. Be3 {[%clk 0:02:10]}  Rf7 {[%clk 0:02:07]} 14. Qb3 {[%clk 0:02:07]}  Bxe3 {[%clk 0:02:05]} 15. Rxe3 {[%clk 0:02:07]}  Nh5 {[%clk 0:02:01]} 16. g3 {[%clk 0:01:54]}  Nxg3 {[%clk 0:01:57]} 17. Nfxe5 {[%clk 0:01:48]}  Nxe5 {[%clk 0:01:43]} 18. Nxe5 {[%clk 0:01:40]}  dxe5 {[%clk 0:01:44]} 0-1


[Site "https://www.chess.com"]

[Event "Titled Tuesday Blitz June 6 Late 2023"]
[White "Petesch, Gabriel"]
[Black "laziestwin"]
[WhiteFideId "2032465"]
[WhiteElo "2374"]
[BlackElo "2658"]
[Result "1-0"]
[Round "7"]
[TimeControl "180+2"]
[Date "2023.06.07"]
[WhiteClock "0:00:18"]
[BlackClock "0:00:03"]
[Board "69"]

1. e3 {[%clk 0:02:40]}  d5 {[%clk 0:02:56]} 2. d4 {[%clk 0:02:31]}  Nf6 {[%clk 0:02:55]} 3. Nf3 {[%clk 0:02:11]}  Bf5 {[%clk 0:02:54]} 4. Bd3 {[%clk 0:02:02]}  Bxd3 {[%clk 0:02:53]} 5. cxd3 {[%clk 0:02:01]}  e6 {[%clk 0:02:50]} 6. Qb3 {[%clk 0:01:58]}  Qc8 {[%clk 0:02:07]} 7. Nc3 {[%clk 0:01:59]}  c6 {[%clk 0:01:59]} 8. O-O {[%clk 0:02:00]}  Be7 {[%clk 0:01:58]} 9. e4 {[%clk 0:02:01]}  O-O {[%clk 0:01:58]} 10. Bf4 {[%clk 0:02:01]}  Nbd7 {[%clk 0:01:57]} 11. Rac1 {[%clk 0:02:00]}  b6 {[%clk 0:01:34]} 12. Ne5 {[%clk 0:01:45]}  Nxe5 {[%clk 0:01:16]} 13. dxe5 {[%clk 0:01:43]}  Nh5 {[%clk 0:00:46]} 14. Bd2 {[%clk 0:01:42]}  Qd8 {[%clk 0:00:38]} 15. g4 {[%clk 0:01:28]}  Bg5 {[%clk 0:00:25]} 16. f4 {[%clk 0:01:27]}  Bxf4 {[%clk 0:00:18]} 17. Bxf4 {[%clk 0:01:28]}  Nxf4 {[%clk 0:00:18]} 18. Rxf4 {[%clk 0:01:28]}  Qg5 {[%clk 0:00:19]} 19. Rcf1 {[%clk 0:01:24]}  Qxe5 {[%clk 0:00:19]} 20. exd5 {[%clk 0:01:21]}  exd5 {[%clk 0:00:19]} 21. d4 {[%clk 0:01:17]}  Qe3+ {[%clk 0:00:20]} 22. Kg2 {[%clk 0:01:17]}  Rae8 {[%clk 0:00:20]} 23. R1f2 {[%clk 0:01:09]}  h6 {[%clk 0:00:20]} 24. h3 {[%clk 0:01:08]}  Re6 {[%clk 0:00:19]} 25. Qa3 {[%clk 0:01:06]}  a5 {[%clk 0:00:10]} 26. Qb3 {[%clk 0:01:03]}  b5 {[%clk 0:00:10]} 27. Qd1 {[%clk 0:00:57]}  f6 {[%clk 0:00:07]} 28. R4f3 {[%clk 0:00:53]}  Qg5 {[%clk 0:00:06]} 29. Rf5 {[%clk 0:00:50]}  Qg6 {[%clk 0:00:04]} 30. Ne2 {[%clk 0:00:48]}  Qf7 {[%clk 0:00:04]} 31. Nf4 {[%clk 0:00:47]}  Re4 {[%clk 0:00:04]} 32. Ne2 {[%clk 0:00:37]}  Rfe8 {[%clk 0:00:04]} 33. Ng3 {[%clk 0:00:37]}  Re3 {[%clk 0:00:04]} 34. R5f3 {[%clk 0:00:34]}  Re1 {[%clk 0:00:04]} 35. Qd3 {[%clk 0:00:32]}  Qe6 {[%clk 0:00:04]} 36. Nf5 {[%clk 0:00:32]}  Ra1 {[%clk 0:00:03]} 37. Nxh6+ {[%clk 0:00:31]}  gxh6 {[%clk 0:00:03]} 38. Qg6+ {[%clk 0:00:32]}  Kh8 {[%clk 0:00:02]} 39. Qxh6+ {[%clk 0:00:32]}  Kg8 {[%clk 0:00:03]} 40. Qg6+ {[%clk 0:00:32]}  Kh8 {[%clk 0:00:03]} 41. Rf5 {[%clk 0:00:18]}  Qe4+ {[%clk 0:00:03]} 42. Kg3 {[%clk 0:00:18]}  Rg1+ {[%clk 0:00:03]} 43. Kh4 {[%clk 0:00:19]}  Qe3 {[%clk 0:00:03]} 44. Rh5+ {[%clk 0:00:18]} 1-0


[Site "https://www.chess.com"]

[Event "Titled Tuesday Blitz June 6 Late 2023"]
[White "Domingo Nunez, Ruben"]
[Black "Luong Phuong Hanh"]
[WhiteFideId "22245570"]
[BlackFideId "12401013"]
[WhiteElo "2404"]
[BlackElo "2081"]
[Result "1-0"]
[Round "7"]
[TimeControl "180+2"]
[Date "2023.06.07"]
[WhiteClock "0:00:05"]
[BlackClock "0:00:19"]
[Board "74"]

1. g4 {[%clk 0:02:59]}  d5 {[%clk 0:02:59]} 2. Bg2 {[%clk 0:02:58]}  Nc6 {[%clk 0:02:58]} 3. c4 {[%clk 0:02:58]}  d4 {[%clk 0:02:58]} 4. b4 {[%clk 0:02:57]}  e5 {[%clk 0:02:57]} 5. b5 {[%clk 0:02:57]}  Nce7 {[%clk 0:02:57]} 6. h3 {[%clk 0:02:56]}  Ng6 {[%clk 0:02:57]} 7. d3 {[%clk 0:02:53]}  Bb4+ {[%clk 0:02:58]} 8. Bd2 {[%clk 0:02:52]}  Bd6 {[%clk 0:02:55]} 9. a4 {[%clk 0:02:49]}  N8e7 {[%clk 0:02:55]} 10. Qc1 {[%clk 0:02:49]}  Bc5 {[%clk 0:02:48]} 11. Na3 {[%clk 0:02:39]}  Qd6 {[%clk 0:02:45]} 12. Nc2 {[%clk 0:02:39]}  h5 {[%clk 0:02:41]} 13. Nf3 {[%clk 0:02:35]}  hxg4 {[%clk 0:02:40]} 14. hxg4 {[%clk 0:02:35]}  Rxh1+ {[%clk 0:02:41]} 15. Bxh1 {[%clk 0:02:36]}  Bxg4 {[%clk 0:02:39]} 16. Ng5 {[%clk 0:02:36]}  f5 {[%clk 0:02:03]} 17. Bxb7 {[%clk 0:02:23]}  Rb8 {[%clk 0:02:03]} 18. Bg2 {[%clk 0:02:24]}  Nh4 {[%clk 0:02:02]} 19. Bh1 {[%clk 0:02:18]}  Qg6 {[%clk 0:01:59]} 20. Qb2 {[%clk 0:02:07]}  Nc8 {[%clk 0:01:19]} 21. Bc6+ {[%clk 0:02:04]}  Kf8 {[%clk 0:01:19]} 22. Bd7 {[%clk 0:01:45]}  Ke7 {[%clk 0:01:15]} 23. Bxc8 {[%clk 0:01:38]}  Rxc8 {[%clk 0:01:16]} 24. O-O-O {[%clk 0:01:39]}  Qd6 {[%clk 0:01:09]} 25. f3 {[%clk 0:01:33]}  Bh5 {[%clk 0:01:06]} 26. Nb4 {[%clk 0:01:34]}  Ng2 {[%clk 0:01:01]} 27. Nd5+ {[%clk 0:01:31]}  Kf8 {[%clk 0:01:01]} 28. Kc2 {[%clk 0:00:41]}  Ba3 {[%clk 0:00:52]} 29. Qb3 {[%clk 0:00:38]}  Be8 {[%clk 0:00:50]} 30. Rg1 {[%clk 0:00:23]}  Ne3+ {[%clk 0:00:48]} 31. Bxe3 {[%clk 0:00:20]}  dxe3 {[%clk 0:00:48]} 32. Ne6+ {[%clk 0:00:16]}  Kf7 {[%clk 0:00:46]} 33. Nxg7 {[%clk 0:00:10]}  Bc5 {[%clk 0:00:39]} 34. Nxf5 {[%clk 0:00:09]}  Qe6 {[%clk 0:00:35]} 35. Ng3 {[%clk 0:00:05]}  Qh3 {[%clk 0:00:31]} 36. Ne4 {[%clk 0:00:04]}  Qh2 {[%clk 0:00:30]} 37. Re1 {[%clk 0:00:04]}  Qh4 {[%clk 0:00:29]} 38. Qc3 {[%clk 0:00:03]}  Bd4 {[%clk 0:00:28]} 39. Qb4 {[%clk 0:00:03]}  c5 {[%clk 0:00:25]} 40. bxc6 {[%clk 0:00:03]}  Bxc6 {[%clk 0:00:25]} 41. Nd6+ {[%clk 0:00:03]}  Ke6 {[%clk 0:00:25]} 42. Nxc8 {[%clk 0:00:03]}  Kd7 {[%clk 0:00:20]} 43. Qe7+ {[%clk 0:00:03]}  Kxc8 {[%clk 0:00:20]} 44. Qxh4 {[%clk 0:00:03]}  Bxa4+ {[%clk 0:00:16]} 45. Kb1 {[%clk 0:00:02]}  Bd7 {[%clk 0:00:16]} 46. Qe7 {[%clk 0:00:02]}  Bc5 {[%clk 0:00:16]} 47. Rh1 {[%clk 0:00:01]}  Bxe7 {[%clk 0:00:16]} 48. Nxe7+ {[%clk 0:00:02]}  Kd8 {[%clk 0:00:17]} 49. Nd5 {[%clk 0:00:03]}  Be6 {[%clk 0:00:17]} 50. Rh8+ {[%clk 0:00:04]}  Kd7 {[%clk 0:00:17]} 51. Rh7+ {[%clk 0:00:05]}  Kc6 {[%clk 0:00:18]} 52. Rxa7 {[%clk 0:00:05]}  Kc5 {[%clk 0:00:18]} 53. Ra5+ {[%clk 0:00:05]}  Kd4 {[%clk 0:00:19]} 54. Kc2 {[%clk 0:00:05]}  Bh3 {[%clk 0:00:18]} 55. Nxe3 {[%clk 0:00:05]}  Bf1 {[%clk 0:00:19]} 56. Nxf1 {[%clk 0:00:04]}  e4 {[%clk 0:00:19]} 57. Rd5# {[%clk 0:00:05]} 1-0


[Site "https://www.chess.com"]

[Event "Titled Tuesday Blitz June 6 Late 2023"]
[White "ArtemDyachuk"]
[Black "Martin Barcelo, Carles"]
[BlackFideId "24561444"]
[WhiteElo "2558"]
[BlackElo "2089"]
[Result "1-0"]
[Round "7"]
[TimeControl "180+2"]
[Date "2023.06.07"]
[WhiteClock "0:00:01"]
[BlackClock "0:00:01"]
[Board "78"]

1. Nf3 {[%clk 0:03:00]}  Nc6 {[%clk 0:02:54]} 2. e4 {[%clk 0:02:57]}  e5 {[%clk 0:02:51]} 3. Bb5 {[%clk 0:02:48]}  a6 {[%clk 0:02:49]} 4. Ba4 {[%clk 0:02:46]}  Nf6 {[%clk 0:02:48]} 5. O-O {[%clk 0:02:38]}  Be7 {[%clk 0:02:46]} 6. d3 {[%clk 0:02:32]}  b5 {[%clk 0:02:38]} 7. Bb3 {[%clk 0:02:29]}  d6 {[%clk 0:02:37]} 8. c3 {[%clk 0:02:29]}  O-O {[%clk 0:02:36]} 9. Re1 {[%clk 0:02:24]}  Na5 {[%clk 0:02:36]} 10. Bc2 {[%clk 0:02:24]}  c5 {[%clk 0:02:36]} 11. Nbd2 {[%clk 0:02:24]}  Re8 {[%clk 0:02:33]} 12. Nf1 {[%clk 0:02:23]}  Bf8 {[%clk 0:02:29]} 13. Ng3 {[%clk 0:02:22]}  g6 {[%clk 0:02:29]} 14. d4 {[%clk 0:02:14]}  cxd4 {[%clk 0:02:21]} 15. cxd4 {[%clk 0:02:15]}  Bb7 {[%clk 0:02:18]} 16. Bg5 {[%clk 0:02:15]}  h6 {[%clk 0:02:10]} 17. dxe5 {[%clk 0:02:12]}  hxg5 {[%clk 0:02:07]} 18. exf6 {[%clk 0:02:13]}  Qxf6 {[%clk 0:02:06]} 19. e5 {[%clk 0:02:11]}  dxe5 {[%clk 0:01:38]} 20. Be4 {[%clk 0:02:10]}  Rad8 {[%clk 0:01:33]} 21. Qe2 {[%clk 0:02:08]}  g4 {[%clk 0:01:12]} 22. Bxb7 {[%clk 0:02:03]}  Nxb7 {[%clk 0:01:11]} 23. Nxe5 {[%clk 0:01:59]}  Kg7 {[%clk 0:00:42]} 24. Qe4 {[%clk 0:01:22]}  Nc5 {[%clk 0:00:39]} 25. Qe3 {[%clk 0:00:37]}  Bd6 {[%clk 0:00:24]} 26. f4 {[%clk 0:00:12]}  gxf3 {[%clk 0:00:23]} 27. Rf1 {[%clk 0:00:10]}  Qxe5 {[%clk 0:00:16]} 28. Qa3 {[%clk 0:00:02]}  Qe3+ {[%clk 0:00:12]} 29. Qxe3 {[%clk 0:00:03]}  Rxe3 {[%clk 0:00:13]} 30. Kf2 {[%clk 0:00:04]}  Rde8 {[%clk 0:00:09]} 31. gxf3 {[%clk 0:00:05]}  Re2+ {[%clk 0:00:09]} 32. Nxe2 {[%clk 0:00:04]}  Nd3+ {[%clk 0:00:09]} 33. Kg1 {[%clk 0:00:04]}  Rxe2 {[%clk 0:00:10]} 34. b4 {[%clk 0:00:02]}  Bxh2+ {[%clk 0:00:09]} 35. Kh1 {[%clk 0:00:02]}  Bf4 {[%clk 0:00:10]} 36. a4 {[%clk 0:00:02]}  Rh2+ {[%clk 0:00:06]} 37. Kg1 {[%clk 0:00:03]}  Ne5 {[%clk 0:00:05]} 38. axb5 {[%clk 0:00:03]}  axb5 {[%clk 0:00:06]} 39. Ra5 {[%clk 0:00:02]}  Nc4 {[%clk 0:00:04]} 40. Rxb5 {[%clk 0:00:02]}  Ne3 {[%clk 0:00:05]} 41. Re1 {[%clk 0:00:01]}  Rg2+ {[%clk 0:00:02]} 42. Kh1 {[%clk 0:00:01]}  Rh2+ {[%clk 0:00:03]} 43. Kg1 {[%clk 0:00:02]}  Nf5 {[%clk 0:00:02]} 44. Rc5 {[%clk 0:00:02]}  Rh5 {[%clk 0:00:01]} 45. Rc4 {[%clk 0:00:01]} 1-0


[Site "https://www.chess.com"]

[Event "Titled Tuesday Blitz June 6 Late 2023"]
[White "Roberson, Peter T"]
[Black "zsizsi99"]
[WhiteFideId "412384"]
[WhiteElo "2346"]
[BlackElo "2423"]
[Result "0-1"]
[Round "7"]
[TimeControl "180+2"]
[Date "2023.06.07"]
[WhiteClock "0:01:19"]
[BlackClock "0:00:46"]
[Board "79"]

1. e4 {[%clk 0:03:00]}  c5 {[%clk 0:03:00]} 2. d3 {[%clk 0:03:00]}  d5 {[%clk 0:02:59]} 3. Nd2 {[%clk 0:03:00]}  e5 {[%clk 0:02:56]} 4. Ngf3 {[%clk 0:02:56]}  Nc6 {[%clk 0:02:54]} 5. g3 {[%clk 0:02:54]}  Be6 {[%clk 0:02:54]} 6. Bg2 {[%clk 0:02:53]}  f6 {[%clk 0:02:53]} 7. O-O {[%clk 0:02:51]}  Qd7 {[%clk 0:02:53]} 8. a3 {[%clk 0:02:50]}  O-O-O {[%clk 0:02:53]} 9. b4 {[%clk 0:02:50]}  cxb4 {[%clk 0:02:51]} 10. axb4 {[%clk 0:02:51]}  Bxb4 {[%clk 0:02:51]} 11. Bb2 {[%clk 0:02:47]}  d4 {[%clk 0:02:49]} 12. Qc1 {[%clk 0:02:40]}  g5 {[%clk 0:02:46]} 13. c3 {[%clk 0:02:39]}  dxc3 {[%clk 0:02:43]} 14. Bxc3 {[%clk 0:02:39]}  Bxc3 {[%clk 0:02:41]} 15. Qxc3 {[%clk 0:02:40]}  Qxd3 {[%clk 0:02:40]} 16. Qc1 {[%clk 0:02:39]}  Kb8 {[%clk 0:02:36]} 17. Rd1 {[%clk 0:02:37]}  Nge7 {[%clk 0:02:29]} 18. Bf1 {[%clk 0:02:31]}  Qd7 {[%clk 0:02:22]} 19. Be2 {[%clk 0:02:25]}  g4 {[%clk 0:02:10]} 20. Nh4 {[%clk 0:02:22]}  Nd4 {[%clk 0:02:06]} 21. Bf1 {[%clk 0:02:14]}  Nec6 {[%clk 0:02:04]} 22. Qa3 {[%clk 0:02:14]}  Nc2 {[%clk 0:02:02]} 23. Qb2 {[%clk 0:01:59]}  Nxa1 {[%clk 0:02:01]} 24. Qxa1 {[%clk 0:02:00]}  Qd4 {[%clk 0:02:00]} 25. Qb1 {[%clk 0:01:59]}  Qb4 {[%clk 0:01:58]} 26. Qc1 {[%clk 0:01:57]}  Rd7 {[%clk 0:01:50]} 27. Nb1 {[%clk 0:01:49]}  Rxd1 {[%clk 0:01:46]} 28. Qxd1 {[%clk 0:01:50]}  Rd8 {[%clk 0:01:45]} 29. Qc1 {[%clk 0:01:50]}  Qxe4 {[%clk 0:01:12]} 30. Bg2 {[%clk 0:01:46]}  Qc4 {[%clk 0:01:10]} 31. Nc3 {[%clk 0:01:45]}  Rd3 {[%clk 0:01:08]} 32. Qh6 {[%clk 0:01:41]}  Qxc3 {[%clk 0:01:05]} 33. Qf8+ {[%clk 0:01:42]}  Rd8 {[%clk 0:01:04]} 34. Qxf6 {[%clk 0:01:41]}  Qe1+ {[%clk 0:00:50]} 35. Bf1 {[%clk 0:01:41]}  Bc4 {[%clk 0:00:50]} 36. h3 {[%clk 0:01:19]}  Qxf1+ {[%clk 0:00:48]} 37. Kh2 {[%clk 0:01:19]}  Qxh3+ {[%clk 0:00:47]} 38. Kg1 {[%clk 0:01:19]}  Rd1# {[%clk 0:00:46]} 0-1


[Site "https://www.chess.com"]